bitfinex-derivatives/quotes_BTCF0:USTF0_20260315
["timestamp","ask_amount","ask_price","bid_price","bid_amount"]
[1773616577113,0.041001,73150.0,73137.0,0.48144619]
[1773616577519,0.042402,73149.0,73137.0,0.48144619]
[1773616577721,0.0014,73148.0,73137.0,0.48144619]
[1773616578626,0.0014,73148.0,73139.0,0.48144619]
[1773616578822,0.041003,73147.0,73134.0,0.52245519]
[1773616579020,0.0014,73148.0,73135.0,0.041009]
[1773616579218,0.0014,73148.0,73136.0,0.48144619]
[1773616579419,0.041002,73149.0,73136.0,0.52245419]
[1773616579713,0.08422878,73160.0,73136.0,0.48144619]
[1773616579919,0.041001,73150.0,73138.0,0.48144619]
[1773616580120,0.0014,73150.0,73138.0,0.48144619]
[1773616580315,0.041002,73149.0,73138.0,0.48144619]
[1773616580829,0.0014,73150.0,73138.0,0.52245319]
[1773616581333,0.0014,73150.0,73140.0,0.48144619]
[1773616581528,0.041,73152.0,73140.0,0.48144619]
[1773616581730,0.042401,73151.0,73140.0,0.48144619]
[1773616581919,0.042401,73150.0,73140.0,0.48144619]
[1773616582631,0.040996,73160.0,73135.0,0.0014]
[1773616582836,0.040996,73160.0,73147.0,0.47105908]
[1773616583533,0.0014,73164.0,73147.0,0.47105908]
[1773616583737,0.0014,73173.0,73160.0,0.47105908]
[1773616584036,0.040991,73169.0,73156.0,0.47105908]
[1773616584234,0.88139443,73200.0,73156.0,0.47105908]
[1773616584235,0.00208324,73181.0,73156.0,0.47105908]
[1773616584435,0.00208324,73181.0,73152.0,0.0014]
[1773616584436,0.0014,73180.0,73161.0,0.47105908]
[1773616584735,0.040988,73174.0,73161.0,0.47105908]
[1773616584935,0.040995,73160.0,73145.0,0.041003]
[1773616585239,0.042394,73162.0,73149.0,0.47105908]
[1773616585734,0.0014,73161.0,73149.0,0.47105908]
[1773616585933,0.0014,73161.0,73150.0,0.041]
[1773616586134,0.0014,73161.0,73149.0,0.47105908]
[1773616586326,0.0014,73161.0,73149.0,0.51206008]
[1773616586528,0.040993,73165.0,73146.0,0.47105908]
[1773616586529,0.0014,73162.0,73146.0,0.47105908]
[1773616586833,0.46942,73181.0,73147.0,0.13669605]
[1773616586834,0.0014,73172.0,73147.0,0.13669605]
[1773616587037,0.040993,73164.0,73157.0,0.47105908]
[1773616587358,0.040993,73164.0,73151.0,0.041]
[1773616587359,0.040993,73164.0,73152.0,0.47105908]
[1773616587750,0.040992,73166.0,73152.0,0.47105908]
[1773616588032,0.0014,73169.0,73151.0,0.47245908]
[1773616588243,0.0014,73168.0,73153.0,0.47105908]
[1773616588430,0.0014,73167.0,73153.0,0.47105908]
[1773616589229,0.040992,73166.0,73153.0,0.47105908]
[1773616589428,0.46773676,73164.0,73142.0,0.47105908]
[1773616589644,0.55185138,73160.0,73137.0,0.51346708]
[1773616589841,0.041001,73151.0,73137.0,0.51346708]
[1773616590042,0.04101,73135.0,73128.0,0.00014463]
[1773616590629,0.0014,73140.0,73128.0,6.3e-07]
[1773616590934,0.041009,73135.0,73128.0,6.3e-07]
[1773616591541,9.736e-05,73134.0,73128.0,6.3e-07]
[1773616591727,9.736e-05,73134.0,73085.0,0.30092]
[1773616591728,0.46783412,73134.0,73111.0,0.23622019]
[1773616591928,9.736e-05,73134.0,73114.0,0.47105908]
[1773616592133,0.041012,73131.0,73117.0,0.47105908]
[1773616592439,0.042413,73130.0,73117.0,0.47105908]
[1773616593140,0.0014,73130.0,73117.0,0.51207808]
[1773616593340,0.04250736,73134.0,73119.0,0.47105908]
[1773616593642,0.0014,73133.0,73114.0,0.47105908]
[1773616594346,0.041012,73130.0,73116.0,0.51207808]
[1773616594543,0.041013,73128.0,73116.0,0.47105908]
[1773616595040,6.845e-05,73129.0,73116.0,0.47105908]
[1773616595743,0.042412,73131.0,73116.0,0.47105908]
[1773616595948,0.0014,73131.0,73116.0,0.47105908]
[1773616596149,0.041018,73120.0,73098.0,0.47105908]
[1773616596443,0.0014,73123.0,73104.0,0.47105908]
[1773616596644,0.0014,73122.0,73104.0,0.47105908]
[1773616597245,0.0014,73122.0,73098.0,0.16517864]
[1773616597246,0.46773676,73120.0,73098.0,0.16517864]
[1773616597442,0.46773676,73120.0,73098.0,0.16477864]
[1773616597749,0.041023,73111.0,73098.0,0.001]
[1773616598050,0.0014,73115.0,73101.0,0.47105908]
[1773616598445,0.042421,73115.0,73101.0,0.51208708]
[1773616598639,0.042421,73115.0,73101.0,0.47105908]
[1773616598952,0.0014,73116.0,73106.0,0.47105908]
[1773616599249,0.0014,73117.0,73106.0,0.47105908]
[1773616600449,0.04102,73116.0,73106.0,0.47105908]
[1773616600646,0.0014,73117.0,73106.0,0.47205908]
[1773616600947,0.0014,73117.0,73106.0,0.001]
[1773616601249,0.042419,73117.0,73101.0,0.47105908]
[1773616601451,0.041016,73123.0,73110.0,0.47105908]
[1773616601650,0.040997,73157.0,73117.0,0.041019]
[1773616601651,0.46773676,73138.0,73117.0,0.041019]
[1773616601950,0.04101,73134.0,73122.0,0.47105908]
[1773616602148,0.0014,73133.0,73122.0,0.47105908]
[1773616602357,0.042411,73133.0,73122.0,0.47105908]
[1773616602855,0.041007,73140.0,73126.0,0.041014]
[1773616603151,0.0014,73139.0,73127.0,0.47105908]
[1773616603448,0.46773676,73134.0,73114.0,0.47105908]
[1773616603641,0.46773676,73132.0,73109.0,0.041024]
[1773616603842,0.041015,73126.0,73111.0,0.041023]
[1773616604053,0.041015,73126.0,73107.0,0.0014]
[1773616604054,0.041017,73121.0,73095.0,0.23622019]
[1773616604249,0.041017,73122.0,73108.0,0.041024]
[1773616604552,0.041017,73122.0,73108.0,0.51208308]
[1773616605141,0.041017,73121.0,73108.0,0.51208308]
[1773616605342,0.041018,73120.0,73106.0,0.041025]
[1773616605542,0.46913676,73125.0,73104.0,0.47105908]
[1773616605746,0.04102,73117.0,73104.0,0.51208508]
[1773616606054,0.0014,73116.0,73104.0,0.51208508]
[1773616606451,0.0014,73116.0,73102.0,0.041027]
[1773616606749,0.0014,73116.0,73102.0,0.47105908]
[1773616606952,0.0014,73116.0,73106.0,0.51208408]
[1773616607152,0.0014,73116.0,73106.0,0.47105908]
[1773616607457,0.0014,73116.0,73105.0,0.041026]
[1773616607850,0.041021,73115.0,73104.0,0.47105908]
[1773616608053,0.0014,73116.0,73104.0,0.47105908]
[1773616608846,0.0014,73116.0,73104.0,0.041026]
[1773616609857,0.0014,73116.0,73105.0,0.001]
[1773616610241,0.0014,73116.0,73102.0,0.041028]
[1773616610440,0.0014,73116.0,73104.0,0.001]
[1773616610845,0.0014,73116.0,73100.0,0.041029]
[1773616610846,0.0014,73116.0,73099.0,0.47105908]
[1773616611044,0.0014,73116.0,73106.0,0.51208408]
[1773616611256,0.0014,73116.0,73106.0,0.47105908]
[1773616611452,0.0014,73116.0,73105.0,0.001]
[1773616611844,0.0014,73115.0,73102.0,0.041027]
[1773616612052,0.0014,73115.0,73102.0,0.53804368]
[1773616612251,0.042421,73115.0,73102.0,0.53804368]
[1773616612757,0.041021,73114.0,73099.0,0.15331939]
[1773616613054,0.0014,73113.0,73102.0,0.51681631]
[1773616613247,0.0014,73113.0,73103.0,0.51681631]
[1773616613448,0.0014,73113.0,73103.0,0.47578931]
[1773616613754,0.041025,73108.0,73095.0,0.47578931]
[1773616614059,0.041023,73110.0,73097.0,0.04103]
[1773616614259,0.041023,73110.0,73102.0,0.001]
[1773616614446,0.041022,73112.0,73102.0,0.001]
[1773616614646,0.4932058,73112.0,73089.0,0.47578931]
[1773616614949,0.0014,73113.0,73090.0,0.47718931]
[1773616615147,0.4932058,73132.0,73113.0,0.51681031]
[1773616615458,0.4932058,73132.0,73089.0,0.15351769]
[1773616615459,0.4946058,73131.0,73108.0,0.47578931]
[1773616615649,0.041016,73123.0,73109.0,0.041024]
[1773616615956,0.0014,73122.0,73110.0,0.041023]
[1773616616359,0.041017,73121.0,73108.0,0.041024]
[1773616616759,0.041018,73119.0,73106.0,0.51681431]
[1773616616959,0.041018,73119.0,73107.0,0.041025]
[1773616618455,0.0014,73122.0,73109.0,0.041024]
[1773616618655,0.041017,73121.0,73109.0,0.041024]
[1773616619055,0.041018,73120.0,73107.0,0.51681431]
[1773616619863,0.0014,73122.0,73107.0,0.47578931]
[1773616620062,0.4932058,73119.0,73101.0,0.041028]
[1773616620368,0.4932058,73119.0,73095.0,0.47578931]
[1773616620756,0.4932058,73114.0,73092.0,0.15845157]
[1773616620960,0.4932058,73118.0,73089.0,0.15845157]
[1773616621161,0.4932058,73116.0,73090.0,0.15845157]
[1773616621466,0.0014,73117.0,73081.0,0.00068417]
[1773616621467,0.041035,73089.0,73081.0,0.00068417]
[1773616621660,0.0014,73091.0,73080.0,0.04104]
[1773616621860,0.4932058,73104.0,73078.0,0.47578931]
[1773616622057,0.041029,73101.0,73074.0,0.47578931]
[1773616622263,0.041031,73097.0,73077.0,0.47578931]
[1773616622574,0.00156062,73096.0,73081.0,0.001]
[1773616622759,0.00156062,73096.0,73085.0,0.041037]
[1773616622957,0.00156062,73096.0,73081.0,0.001]
[1773616622958,0.0014,73095.0,73083.0,0.041038]
[1773616623157,0.0014,73095.0,73083.0,0.47578931]
[1773616623468,0.0014,73095.0,73085.0,0.041037]
[1773616623964,0.0014,73095.0,73086.0,0.041036]
[1773616624565,0.0014,73095.0,73081.0,0.47578931]
[1773616624758,0.041032,73094.0,73079.0,0.04104]
[1773616624959,0.041032,73094.0,73080.0,0.04104]
[1773616625159,0.041032,73094.0,73081.0,0.041039]
[1773616625360,0.041032,73094.0,73083.0,0.001]
[1773616625561,0.0014,73095.0,73083.0,0.001]
[1773616625766,0.0014,73095.0,73081.0,0.041039]
[1773616626271,0.0014,73095.0,73075.0,0.47718931]
[1773616626272,0.4946058,73095.0,73075.0,0.51683231]
[1773616626471,0.041036,73088.0,73075.0,0.041043]
[1773616626771,0.0014,73087.0,73075.0,0.041043]
[1773616626974,0.0014,73087.0,73076.0,0.041042]
[1773616627858,0.0014,73087.0,73073.0,0.47578931]
[1773616628055,0.0014,73087.0,73074.0,0.041043]
[1773616628268,0.041039,73083.0,73065.0,0.0014]
[1773616628473,0.4932058,73078.0,73057.0,0.041053]
[1773616628661,0.4932058,73076.0,73059.0,0.041051]
[1773616628861,0.041044,73074.0,73061.0,0.041051]
[1773616629865,0.4946058,73075.0,73055.0,0.47718931]
[1773616630762,0.4946058,73075.0,73055.0,0.47578931]
[1773616631367,0.5342528,73069.0,73055.0,0.041054]
[1773616631573,0.0014,73068.0,73055.0,0.041054]
[1773616631776,0.0014,73068.0,73052.0,0.0014]
[1773616631963,0.041048,73066.0,73052.0,0.042455]
[1773616632464,0.041049,73064.0,73055.0,0.001]
[1773616632664,0.041048,73066.0,73055.0,0.001]
[1773616632863,0.4946058,73068.0,73055.0,0.001]
[1773616633064,0.4946058,73068.0,73051.0,0.041056]
[1773616633373,0.4932058,73065.0,73049.0,0.000143]
[1773616633571,0.4932058,73067.0,73049.0,0.000143]
[1773616633875,0.041052,73059.0,73049.0,0.000143]
[1773616634077,0.0014,73058.0,73049.0,0.000143]
[1773616634875,0.041054,73056.0,73035.0,0.47578931]
[1773616635081,0.4946058,73058.0,73035.0,0.47578931]
[1773616635377,0.5356588,73058.0,73049.0,0.001]
[1773616635672,0.041054,73056.0,73049.0,0.001]
[1773616635974,0.4932058,73053.0,73039.0,0.041063]
[1773616636164,0.4932058,73053.0,73041.0,0.041062]
[1773616636683,0.49332574,73052.0,73039.0,0.041063]
[1773616636868,0.4946058,73051.0,73035.0,0.001]
[1773616637064,0.4946058,73051.0,73013.0,0.30112]
[1773616637065,0.4932058,73049.0,73024.0,0.47578931]
[1773616637475,0.041061,73044.0,73029.0,0.041068]
[1773616638072,0.0014,73043.0,73029.0,0.041068]
[1773616638666,0.4946058,73043.0,73024.0,0.47578931]
[1773616638866,0.5342728,73033.0,73016.0,0.041076]
[1773616639068,0.4932058,73031.0,73002.0,0.47578931]
[1773616639368,0.0014,73030.0,73018.0,0.47578931]
[1773616639568,0.4932058,73026.0,73007.0,0.0014]
[1773616639778,0.4932058,73024.0,73009.0,0.04108]
[1773616640069,0.4932058,73024.0,72999.0,0.47718931]
[1773616640276,0.041082,73006.0,72990.0,0.04109]
[1773616640477,0.0014,73006.0,72986.0,0.47578931]
[1773616640777,0.0014,73006.0,72986.0,0.47718931]
[1773616640972,0.4932058,73003.0,72981.0,0.00068511]
[1773616641275,0.4932058,72999.0,72982.0,0.041095]
[1773616641480,0.041093,72987.0,72969.0,0.041103]
[1773616641665,0.041093,72987.0,72957.0,0.00015065]
[1773616641666,0.0015145,72986.0,72974.0,0.0411]
[1773616641868,0.0015145,72986.0,72957.0,0.00015065]
[1773616641869,0.0014,72985.0,72962.0,0.47578931]
[1773616642069,0.46310022,72985.0,72967.0,0.041103]
[1773616642380,0.46170022,72983.0,72964.0,0.041105]
[1773616642576,0.46170022,72984.0,72957.0,0.00015065]
[1773616642770,0.0014,72985.0,72957.0,0.00015065]
[1773616642771,0.46170022,72975.0,72958.0,0.041109]
[1773616643072,0.46170022,72973.0,72960.0,0.041107]
[1773616643279,0.0014,72972.0,72957.0,0.00015065]
[1773616643478,0.00155463,72972.0,72957.0,0.00015065]
[1773616643670,0.00155463,72972.0,72958.0,0.041109]
[1773616643877,0.00155463,72972.0,72957.0,0.00015065]
[1773616644071,0.46170022,73002.0,72967.0,0.46476932]
[1773616644265,0.041084,73003.0,72985.0,0.46476932]
[1773616644469,0.46170022,73004.0,72981.0,0.46476932]
[1773616644780,0.46170022,72998.0,72980.0,0.0014]
[1773616645077,0.00154605,72997.0,72977.0,0.50586732]
[1773616645276,0.0014,72996.0,72977.0,0.50586732]
[1773616645476,0.041088,72995.0,72976.0,0.0014]
[1773616645677,0.041088,72995.0,72963.0,0.13700694]
[1773616645678,0.46170022,72986.0,72960.0,0.46476932]
[1773616645980,0.46320577,72985.0,72964.0,0.041105]
[1773616646171,0.041096,72981.0,72963.0,0.041106]
[1773616646371,0.46170022,72984.0,72963.0,0.041106]
[1773616646566,0.50279722,72980.0,72962.0,0.042506]
[1773616646967,0.041095,72983.0,72962.0,0.50587532]
[1773616647173,0.46170022,72983.0,72962.0,0.041106]
[1773616647373,0.46170022,72983.0,72958.0,0.46476932]
[1773616647374,0.46170022,72976.0,72959.0,0.0014]
[1773616647575,0.46170022,72974.0,72959.0,0.0014]
[1773616647880,0.46170022,72974.0,72955.0,0.04111]
[1773616647881,0.0014,72973.0,72955.0,0.04111]
[1773616648077,0.0014,72973.0,72957.0,0.04125965]
[1773616648586,0.50420022,72973.0,72957.0,0.00015065]
[1773616648972,0.50280322,72969.0,72957.0,0.00015065]
[1773616649679,0.50280422,72967.0,72957.0,0.00015065]
[1773616649884,0.0014,72966.0,72957.0,0.00015065]
[1773616651191,0.50280322,72969.0,72957.0,0.00115065]
[1773616651688,0.041105,72965.0,72957.0,0.00115065]
[1773616651875,0.041106,72963.0,72932.0,0.02142177]
[1773616652074,0.46170022,72964.0,72948.0,0.041114]
[1773616652478,0.0014,72963.0,72939.0,0.46476932]
[1773616652686,0.0014,72963.0,72930.0,0.46476932]
[1773616652687,0.46170022,72956.0,72930.0,0.46476932]
[1773616652885,0.50297478,72955.0,72939.0,0.041119]
[1773616653083,0.46170022,72950.0,72936.0,0.041121]
[1773616653393,0.46170022,72950.0,72928.0,0.46476932]
[1773616653583,0.00016356,72955.0,72930.0,0.0014]
[1773616653584,0.46310022,72949.0,72930.0,0.0014]
[1773616653784,0.46310022,72949.0,72929.0,0.0014]
[1773616654088,0.0014,72949.0,72931.0,0.4654549]
[1773616654283,0.00016356,72955.0,72931.0,0.4654549]
[1773616654284,0.46170022,72951.0,72931.0,0.00068558]
[1773616654482,0.0014,72952.0,72931.0,0.00068558]
[1773616654483,0.46310022,72952.0,72931.0,0.00068558]
[1773616654689,0.46170022,72948.0,72934.0,0.041122]
[1773616654992,0.46170022,72946.0,72933.0,0.041122]
[1773616655290,0.00016356,72955.0,72934.0,0.46476932]
[1773616655480,0.00016356,72955.0,72932.0,0.46476932]
[1773616655681,0.00016356,72955.0,72943.0,0.041117]
[1773616656184,0.00016356,72955.0,72942.0,0.041118]
[1773616656389,0.00016356,72955.0,72932.0,0.15609676]
[1773616656390,0.00016356,72955.0,72943.0,0.041117]
[1773616656577,0.00016356,72955.0,72938.0,0.46476932]
[1773616656578,0.00016356,72955.0,72946.0,0.041115]
[1773616656774,0.00016356,72955.0,72940.0,0.0014]
[1773616656981,0.46170022,72954.0,72933.0,0.0014]
[1773616657184,0.46170022,72946.0,72935.0,0.041122]
[1773616657388,0.0014,72948.0,72932.0,0.0014]
[1773616657690,0.0014,72948.0,72938.0,0.04112]
[1773616657886,0.0014,72949.0,72938.0,0.04112]
[1773616658091,0.0014,72949.0,72935.0,0.041121]
[1773616658288,0.46310022,72949.0,72932.0,0.0014]
[1773616658490,0.46310022,72949.0,72936.0,0.041121]
[1773616658795,0.46170022,72946.0,72933.0,0.041122]
[1773616659206,0.46170022,72946.0,72932.0,0.0014]
[1773616659494,0.041118,72943.0,72929.0,0.041125]
[1773616659697,0.46170022,72944.0,72922.0,0.0014]
[1773616659895,0.46170022,72948.0,72923.0,0.0014]
[1773616660197,0.46170022,72938.0,72908.0,0.46476932]
[1773616660386,0.46170022,72930.0,72916.0,0.0014]
[1773616660695,0.00084734,72929.0,72914.0,0.46476932]
[1773616660888,0.0014,72934.0,72921.0,0.041129]
[1773616661396,0.0014,72934.0,72913.0,0.0514]
[1773616661397,0.46170022,72929.0,72916.0,0.041132]
[1773616661588,0.46170022,72929.0,72913.0,0.05]
[1773616661589,0.041123,72933.0,72913.0,0.51476932]
[1773616661791,0.0001228,72932.0,72913.0,0.51476932]
[1773616662095,0.0001228,72932.0,72923.0,0.041128]
[1773616662405,0.46170022,72929.0,72869.0,0.1372]
[1773616662607,0.041128,72924.0,72892.0,0.041146]
[1773616662903,0.041136,72911.0,72893.0,0.46476932]
[1773616663090,0.46170022,72913.0,72898.0,0.041142]
[1773616663291,0.46170022,72918.0,72898.0,0.46612932]
[1773616663489,0.00017457,72917.0,72899.0,0.46476932]
[1773616663689,0.00017457,72917.0,72903.0,0.50590832]
[1773616663895,0.00017457,72917.0,72908.0,0.041137]
[1773616664200,0.46170022,72928.0,72902.0,0.04114]
[1773616664493,0.04113,72921.0,72903.0,0.0014]
[1773616664790,0.041133,72916.0,72898.0,0.041142]
[1773616664992,0.46170022,72918.0,72900.0,0.041141]
[1773616665289,0.46170022,72916.0,72899.0,0.0014]
[1773616665490,0.46170022,72916.0,72897.0,0.041143]
[1773616665491,0.46170022,72915.0,72900.0,0.0014]
[1773616665696,0.00015507,72917.0,72902.0,0.04114]
[1773616665887,0.00015507,72917.0,72903.0,0.0014]
[1773616666200,0.04128707,72917.0,72904.0,0.0014]
[1773616666386,0.04128707,72917.0,72905.0,0.0014]
[1773616666583,0.041134,72914.0,72896.0,0.041143]
[1773616666787,0.00015507,72917.0,72900.0,0.041141]
[1773616666994,0.00015507,72917.0,72901.0,0.0014]
[1773616667292,0.46170022,72929.0,72901.0,0.46616932]
[1773616667596,0.46170022,72939.0,72907.0,0.46476932]
[1773616667794,0.46170022,72953.0,72903.0,0.46476932]
[1773616667996,0.46170022,72953.0,72923.0,0.041128]
[1773616668297,0.0014,72954.0,72920.0,0.46476932]
[1773616668298,0.46170022,72941.0,72924.0,0.0014]
[1773616668493,0.50282022,72938.0,72924.0,0.0014]
[1773616668797,0.041121,72936.0,72924.0,0.0014]
[1773616669187,0.041121,72936.0,72925.0,0.0014]
[1773616669387,0.46170022,72934.0,72916.0,0.041132]
[1773616669684,0.46170022,72934.0,72901.0,0.57551476]
[1773616669685,0.46170022,72957.0,72921.0,0.46476932]
[1773616669883,0.002,72953.0,72927.0,0.041126]
[1773616670095,0.46170022,72952.0,72927.0,0.041126]
[1773616670489,0.001,72936.0,72927.0,0.041126]
[1773616670695,0.46170022,72932.0,72908.0,0.46476932]
[1773616670884,0.041122,72934.0,72918.0,0.041131]
[1773616671090,0.50282622,72929.0,72919.0,0.0014]
[1773616671294,0.041123,72933.0,72920.0,0.0014]
[1773616671496,0.46170022,72939.0,72921.0,0.0014]
[1773616671685,0.46170022,72926.0,72922.0,0.0014]
[1773616671885,0.50282722,72926.0,72909.0,0.041136]
[1773616672090,0.46170022,72926.0,72913.0,0.041134]
[1773616672291,0.46170022,72926.0,72914.0,0.0014]
[1773616672985,0.45530578,72945.0,72905.0,0.15004531]
[1773616673185,0.45530578,72945.0,72881.0,0.39891533]
[1773616673186,0.45530578,72919.0,72888.0,0.46173686]
[1773616673404,0.27408,72953.0,72888.0,0.46173686]
[1773616673405,0.45530578,72925.0,72889.0,0.46173686]
[1773616673696,0.45530578,72919.0,72890.0,0.46313686]
[1773616673898,0.45530578,72933.0,72900.0,0.46173686]
[1773616674197,0.45530578,72939.0,72907.0,0.041137]
[1773616674400,0.45530578,72939.0,72897.0,0.46173686]
[1773616674401,0.041133,72915.0,72897.0,0.46173686]
[1773616674596,0.45530578,72926.0,72898.0,0.0014]
[1773616674795,0.45530578,72910.0,72888.0,0.002]
[1773616675102,0.45530578,72905.0,72889.0,0.0014]
[1773616675697,0.04114,72902.0,72888.0,0.002]
[1773616675890,0.45530578,72901.0,72890.0,0.0014]
[1773616676092,0.49644778,72900.0,72884.0,0.04115]
[1773616676294,0.041142,72899.0,72885.0,0.0014]
[1773616676600,0.45530578,72900.0,72889.0,0.001]
[1773616676898,0.45530578,72915.0,72894.0,0.041145]
[1773616677100,0.45530578,72921.0,72895.0,0.46313686]
[1773616677413,0.041132,72917.0,72896.0,0.0014]
[1773616677603,0.45530578,72917.0,72891.0,0.13718926]
[1773616677906,0.03463661,72950.0,72889.0,0.001]
[1773616677907,0.45530578,72906.0,72889.0,0.001]
[1773616678199,0.45530578,72906.0,72892.0,0.041146]
[1773616678404,0.45530578,72916.0,72893.0,0.0014]
[1773616678704,0.041134,72913.0,72897.0,0.041143]
[1773616679199,0.45530578,72916.0,72895.0,0.46173686]
[1773616679402,0.45530578,72913.0,72882.0,0.46173686]
[1773616679703,0.49644178,72910.0,72883.0,0.46313686]
[1773616679900,0.49644178,72910.0,72882.0,0.1371648]
[1773616679901,0.041137,72908.0,72892.0,0.041146]
[1773616680096,0.45530578,72910.0,72896.0,0.041144]
[1773616680294,0.45530578,72910.0,72875.0,0.39822928]
[1773616680295,0.45530578,72909.0,72887.0,0.0014]
[1773616680495,0.45530578,72901.0,72878.0,0.46173686]
[1773616680704,0.041149,72888.0,72872.0,0.041157]
[1773616680903,0.041148,72889.0,72882.0,0.00071395]
[1773616681200,0.49645578,72886.0,72878.0,0.0014]
[1773616681505,0.49645578,72886.0,72870.0,0.041158]
[1773616681697,0.49645578,72886.0,72877.0,0.041154]
[1773616681698,0.45530578,72886.0,72877.0,0.041154]
[1773616681901,0.45530578,72891.0,72878.0,0.0014]
[1773616682113,0.45530578,72896.0,72878.0,0.0014]
[1773616682294,0.041118,72943.0,72878.0,0.0014]
[1773616682295,0.45530578,72915.0,72903.0,0.04114]
[1773616682604,0.45530578,72910.0,72872.0,0.90375253]
[1773616682802,0.45530578,72910.0,72895.0,0.041144]
[1773616682997,0.45530578,72910.0,72872.0,0.39822928]
[1773616682998,0.45530578,72903.0,72879.0,0.13719867]
[1773616683308,0.57962185,72930.0,72872.0,0.54942222]
[1773616683309,0.45530578,72915.0,72886.0,0.46173686]
[1773616683491,0.57962185,72930.0,72888.0,0.46173686]
[1773616683492,0.45530578,72911.0,72888.0,0.46173686]
[1773616683695,0.08457889,72920.0,72874.0,0.041156]
[1773616683696,0.45530578,72899.0,72874.0,0.041156]
[1773616683906,0.45530578,72899.0,72866.0,0.0014]
[1773616683907,0.45530578,72886.0,72866.0,0.0014]
[1773616684105,0.04115,72885.0,72866.0,0.0014]
[1773616684496,0.041153,72880.0,72863.0,0.041162]
[1773616684794,0.041153,72880.0,72840.0,0.08457889]
[1773616684795,0.45530578,72879.0,72857.0,0.041166]
[1773616684996,0.49646478,72870.0,72856.0,0.0014]
[1773616685209,0.45530578,72870.0,72857.0,0.02144453]
[1773616685508,0.45530578,72882.0,72858.0,0.02144453]
[1773616685696,0.00011157,72881.0,72869.0,0.041158]
[1773616685892,0.00011157,72881.0,72870.0,0.02144453]
[1773616686109,0.041146,72893.0,72870.0,0.46173686]
[1773616686405,0.45530578,72896.0,72875.0,0.041155]
[1773616686611,0.53988467,72890.0,72869.0,0.0014]
[1773616686807,0.45530578,72878.0,72870.0,0.02144362]
[1773616686997,0.45530578,72889.0,72866.0,0.0014]
[1773616687197,0.45530578,72888.0,72866.0,0.0014]
[1773616687399,0.49644878,72898.0,72880.0,0.041152]
[1773616687600,0.0014,72907.0,72876.0,0.46173686]
[1773616687601,0.45530578,72907.0,72876.0,0.46173686]
[1773616687919,0.041139,72904.0,72888.0,0.041148]
[1773616688210,0.041149,72888.0,72875.0,0.0014]
[1773616688409,0.041149,72888.0,72864.0,0.46173686]
[1773616688410,0.45530578,72892.0,72864.0,0.85996614]
[1773616688607,0.45530578,72892.0,72865.0,0.0014]
[1773616688802,0.45530578,72888.0,72867.0,0.04116]
[1773616689009,0.041152,72883.0,72867.0,0.04116]
[1773616689409,0.041152,72883.0,72864.0,0.0014]
[1773616689410,0.45530578,72899.0,72869.0,0.46173686]
[1773616689598,0.45530578,72899.0,72868.0,0.13718173]
[1773616689599,0.45530578,72889.0,72868.0,0.13718173]
[1773616689804,0.45530578,72896.0,72869.0,0.46313686]
[1773616690113,0.041143,72898.0,72882.0,0.041152]
[1773616690304,0.041143,72898.0,72865.0,0.13722126]
[1773616690305,0.041146,72892.0,72880.0,0.0014]
[1773616690606,0.45530578,72901.0,72872.0,0.46173686]
[1773616690811,0.041138,72906.0,72892.0,0.041146]
[1773616691110,0.45530578,72903.0,72883.0,0.042551]
[1773616691302,0.49644878,72898.0,72883.0,0.042551]
[1773616691504,0.49644878,72898.0,72884.0,0.04115]
[1773616691807,0.0014,72898.0,72882.0,0.0014]
[1773616692007,0.45530578,72904.0,72866.0,0.14983498]
[1773616692008,0.45530578,72904.0,72890.0,0.041147]
[1773616692208,0.001,72903.0,72888.0,0.0014]
[1773616692423,0.001,72903.0,72889.0,0.0014]
[1773616692715,0.041138,72907.0,72890.0,0.0014]
[1773616692917,0.45530578,72907.0,72891.0,0.0014]
[1773616693114,0.04114,72904.0,72891.0,0.0014]
[1773616693314,0.45530578,72906.0,72891.0,0.042546]
[1773616693506,0.49644478,72906.0,72891.0,0.042546]
[1773616694223,0.04114,72903.0,72891.0,0.0014]
[1773616694716,0.49644578,72903.0,72890.0,0.0014]
[1773616695019,0.041139,72905.0,72890.0,0.0014]
[1773616695515,0.49644478,72905.0,72890.0,0.042547]
[1773616695705,0.49644478,72905.0,72890.0,0.041147]
[1773616695912,0.45530578,72905.0,72890.0,0.0014]
[1773616696216,0.45530578,72905.0,72893.0,0.041145]
[1773616696411,0.45530578,72905.0,72890.0,0.0014]
[1773616696612,0.0014,72908.0,72890.0,0.46313686]
[1773616696823,0.45670578,72914.0,72901.0,0.041141]
[1773616697304,0.45670578,72914.0,72902.0,0.04114]
[1773616697708,0.45670578,72914.0,72902.0,0.03290961]
[1773616698116,0.041133,72916.0,72898.0,0.0014]
[1773616698117,0.041125,72930.0,72901.0,0.46173686]
[1773616698314,0.041125,72930.0,72889.0,0.041148]
[1773616698315,0.45530578,72921.0,72899.0,0.46173686]
[1773616698513,0.45530578,72929.0,72900.0,0.46313686]
[1773616698821,0.45530578,72929.0,72913.0,0.00823039]
[1773616699021,0.45530578,72929.0,72911.0,0.0014]
[1773616699313,0.041132,72918.0,72908.0,0.0014]
[1773616699506,0.041116,72946.0,72902.0,0.04114]
[1773616699507,0.45530578,72912.0,72902.0,0.04114]
[1773616699706,0.0014,72916.0,72902.0,0.04114]
[1773616699929,0.042533,72916.0,72902.0,0.04114]
[1773616700212,0.042533,72916.0,72900.0,0.041141]
[1773616700213,0.49783878,72916.0,72900.0,0.041141]
[1773616700619,0.49643878,72915.0,72900.0,0.041141]
[1773616700917,0.041134,72914.0,72900.0,0.041141]
[1773616701120,0.45530578,72913.0,72900.0,0.041141]
[1773616701304,0.45530578,72913.0,72901.0,0.04114]
[1773616702621,0.45530578,72913.0,72899.0,0.041142]
[1773616702817,0.45530578,72913.0,72872.0,0.46798414]
[1773616703024,0.45530578,72913.0,72891.0,0.041146]
[1773616703219,0.45530578,72913.0,72891.0,0.0014]
[1773616703522,0.46717554,72917.0,72891.0,0.0014]
[1773616703821,0.46717554,72915.0,72891.0,0.042546]
[1773616704023,0.46717554,72913.0,72889.0,0.041148]
[1773616704316,0.46717554,72911.0,72886.0,0.041149]
[1773616704520,0.46717554,72911.0,72887.0,0.042548]
[1773616704720,0.46717554,72911.0,72888.0,0.042548]